{"text_format":"1","workbook":"xlsx","n_sheets":5,"sheets":["Hoja 1. Formato Hoja de Vida","Hoja 2 . Exp. Docente","Hoja 3. Exp. Profesional","Hoja 4. Exp. Investigativa","Hoja 5. Productividad Academica"],"not_rendered":{"charts":0,"images":1,"macros":1,"external_links":0,"defined_names":9,"comments":2,"pivot_tables":0},"unopened":[],"bounds":{"document_bytes":16777216,"sheet_cells":100000,"rows_first":2000,"rows_last":500,"rows_between":2000,"halvings":0,"cell_chars":16384,"cell_head_chars":4096},"cells_cut":0,"cells_raw":0,"read":"whole","date_system":"1900"}

{"sheet":"Hoja 1. Formato Hoja de Vida","index":0,"n_rows":49,"n_cols":2,"rows_kept":49,"cut":false,"hidden":false,"merged":[[43,0,43,1],[49,0,49,1],[37,0,37,1],[46,0,46,1],[45,0,45,1],[47,0,47,1],[44,0,44,1],[48,0,48,1],[42,0,42,1],[36,0,36,1],[26,0,26,1],[0,0,0,1],[1,0,1,1],[19,0,19,1],[27,0,27,1],[18,0,18,1]]}
["Señor aspirante: usted debe diligenciar este Formato y sus Formatos Anexos únicamente a computador  y subirlo en archivo de Microsoft Excel junto con el resto de su documentación el el formulario dispuesto para tal fin."]
["DATOS PERSONALES"]
["Nombres:"]
["Apellidos:"]
["Género:"]
["Nacionalidad:"]
["Tipo de Identificación:"]
["Número de Identificación:"]
["Estado Civil:"]
["País de Nacimiento:"]
["Ciudad de Nacimiento:"]
["Fecha de Nacimiento:"]
["País de Residencia:"]
["Ciudad de Residencia:"]
["Dirección de Residencia:"]
["Correo Electrónico :"]
["N° Teléfono Fijo:"]
["N° Teléfono Celular:"]
[]
["PREGRADO"]
[null,"Para agregar un pregrado adicional oprima en el boton adicionar  antes de diligenciar los campos y el numero de veces que necesita adicionar y luego  diligencie la información correspondiente."]
["Título Obtenido:"]
["Institución:"]
["País:"]
["Ciudad:"]
["Fecha de Graduación:"]
[]
["POSGRADO "]
[null,"Para agregar un postgrado adicional oprima en el boton adicionar  antes de diligenciar los campos y el numero de veces que necesita adicionar y luego  diligencie la información correspondiente."]
["Título Obtenido:"]
["Institución:"]
["Modalidad de Grado:"]
["País:"]
["Ciudad:"]
["Fecha de Graduación:"]
["Información Adicional:"]
[]
["TESIS DOCTORAL"]
["Titulo:"]
["Linea de investigacion:"]
["Director:"]
["Link repositorio:"]
[]
[]
["EXPERIENCIA DOCENTE, PROFESIONAL E INVESTIGATIVA"]
["Diligencie los Formatos Anexos de Experiencia Docente, Experiencia Profesional y Experiencia Investigativa, en las Hojas 2, 3 y 4, de este archivo de Microsoft Excel."]
[]
["PRODUCTIVIDAD ACADÉMICA"]
["Diligencie el Formato Anexo de Productividad Académica, en la Hoja 5 de este archivo de Microsoft Excel."]

{"sheet":"Hoja 2 . Exp. Docente","index":1,"n_rows":30,"n_cols":10,"rows_kept":30,"cut":false,"hidden":false,"merged":[[29,0,29,9],[5,6,5,9],[4,0,4,9],[0,2,0,5],[1,2,1,5],[2,2,2,5],[5,0,5,5],[0,0,0,1],[1,0,1,1],[2,0,2,1],[0,6,3,9],[27,0,27,9]]}
["Nombres y Apellidos del Aspirante:"]
["Tipo de Identificación:"]
["Número de Identificación:"]
[]
["A continuación relacione en orden cronológico su Experiencia Docente, "]
[null,null,null,null,null,null," Para uso exclusivo de la Institución."]
["N° ","NOMBRE O RAZÓN SOCIAL DE LA INSTITUCIÓN","ASIGNATURA(S) DICTADA(S)","FECHA INICIAL","FECHA FINAL ","DEDICACIÓN \n(N° HORAS /SEMANA)","TIEMPO TOTAL (MESES)","TIEMPO TOTAL (SEMANAS)","TIEMPO TOTAL (HORAS)","OBSERVACIONES DE LOS JURADOS"]
[1,null,null,null,null,null,{"$f":"(E8-D8)/30","v":0},{"$f":"G8*(F8/40)","v":0},{"$f":"H8/12","v":0}]
[2,null,null,null,null,null,{"$f":"(E9-D9)/30","v":0},{"$f":"G9*(F9/40)","v":0},{"$f":"(H9*F9)","v":0}]
[3,null,null,null,null,null,0,0,0]
[4,null,null,null,null,null,0,0,0]
[5,null,null,null,null,null,0,0,0]
[6,null,null,null,null,null,0,0,0]
[7,null,null,null,null,null,0,0,0]
[8,null,null,null,null,null,0,0,0]
[9,null,null,null,null,null,0,0,0]
[10,null,null,null,null,null,0,0,0]
[11,null,null,null,null,null,0,0,0]
[12,null,null,null,null,null,0,0,0]
[13,null,null,null,null,null,0,0,0]
[14,null,null,null,null,null,0,0,0]
[15,null,null,null,null,null,{"$f":"(E22-D22)/30","v":0},0,{"$f":"(H22*F22)","v":0}]
[16,null,null,null,null,null,0,0,0]
[17,null,null,null,null,null,0,0,0]
[18,null,null,null,null,null,0,0,0]
[19,null,null,null,null,null,0,0,0]
[20,null,null,null,null,null,0,0,0]
["Nota: en caso de ser necesario, favor inserte filas adicionales para registrar otras Experiencias Docentes, entre las filas 19 y 20, para no alterar las fórmulas ni los formatos de las celdas."]
[]
["Recordatorio: para que las experiencias relacionadas en este Formato sean tenidas en cuenta, las certificaciones correspondientes deben cumplir los requisitos estipulados en la Resolución de convocatoria al Concurso Profesoral 2022 del Instituto de Ciencia y Tecnologia de  Alimentos-ICTA"]

{"sheet":"Hoja 3. Exp. Profesional","index":2,"n_rows":30,"n_cols":11,"rows_kept":30,"cut":false,"hidden":false,"merged":[[29,0,29,10],[0,2,0,5],[1,2,1,5],[2,2,2,5],[5,7,5,10],[4,0,4,10],[0,0,0,1],[1,0,1,1],[2,0,2,1],[0,6,3,10]]}
["Nombres y Apellidos del Aspirante:"]
["Tipo de Identificación:"]
["Número de Identificación:"]
[]
["A continuación relacione en orden cronológico su Experiencia Profesional."]
[null,null,null,null,null,null,null," Para uso exclusivo de la Institución."]
["N°","NOMBRE O RAZÓN SOCIAL DE LA ENTIDAD O EMPRESA","CARGO","ÁREA EN QUE SE DESEMPEÑÓ","FECHA INICIAL  ","FECHA FINAL         ","DEDICACIÓN\n(N° HORAS /SEMANA)","TIEMPO TOTAL (MESES CALENDARIO)","TIEMPO TOTAL (MESES DE TIEMPO COMPLETO)","TIEMPO TOTAL (AÑOS DE TIEMPO COMPLETO)","OBSERVACIONES DE LOS JURADOS"]
[1,"sdafsd",null,null,null,null,null,{"$f":"(F8-E8)/30","v":0},{"$f":"H8*(G8/48)","v":0},{"$f":"I8/12","v":0}]
[2,null,null,null,null,null,null,{"$f":"(F9-E9)/30","v":0},{"$f":"H9*(G9/48)","v":0},{"$f":"I9/12","v":0}]
[3,"asdf",null,null,null,null,null,0,0,0]
[4,null,null,null,null,null,null,0,0,0]
[5,null,null,null,null,null,null,0,0,0]
[6,null,null,null,null,null,null,0,0,0]
[7,null,null,null,null,null,null,0,0,0]
[8,null,"asfd",null,null,null,null,0,0,0]
[9,null,null,null,null,null,null,0,0,0]
[10,null,null,null,null,null,null,0,0,0]
[11,null,null,null,null,null,null,0,0,0]
[12,null,null,null,null,null,null,0,0,0]
[13,null,null,null,null,null,null,0,0,0]
[14,null,null,null,null,null,null,0,0,0]
[15,null,null,null,null,null,null,0,0,0]
[16,null,null,null,null,null,null,0,0,0]
[17,null,null,null,null,null,null,0,0,0]
[18,"asfd",null,null,null,null,null,0,0,0]
[19,null,null,null,null,null,null,0,0,0]
[20,null,null,null,null,null,null,0,0,0]
["Nota: en caso de ser necesario, favor inserte filas adicionales para registrar otras Experiencias Profesionales, entre las filas 19 y 20, para no alterar las fórmulas ni los formatos de las celdas."]
[]
["Recordatorio: para que las experiencias relacionadas en este Formato sean tenidas en cuenta, las certificaciones correspondientes deben cumplir los requisitos estipulados en la Resolución de convocatoria al Concurso Profesoral 2022 del Instituto de Ciencia y Tecnologia de  Alimentos-ICTA"]

{"sheet":"Hoja 4. Exp. Investigativa","index":3,"n_rows":28,"n_cols":11,"rows_kept":28,"cut":false,"hidden":false,"merged":[[27,0,27,10],[0,2,0,5],[1,2,1,5],[2,2,2,5],[3,7,3,10],[3,0,3,6],[0,6,2,10],[0,0,0,1],[1,0,1,1],[2,0,2,1]]}
["Nombres y Apellidos del Aspirante:"]
["Tipo de Identificación:"]
["Número de Identificación:"]
[null,null,null,null,null,null,null," Para uso exclusivo de la Institución."]
["N° ARCHIVO SOPORTE","NOMBRE O RAZÓN SOCIAL DE LA ENTIDAD O EMPRESA","CARGO","ÁREA EN QUE SE DESEMPEÑÓ","FECHA INICIAL  ","FECHA FINAL          (DD-MMM-AAAA)","DEDICACIÓN           (N° HORAS /SEMANA). Favor anotar únicamente el número, sin letras.","TIEMPO TOTAL (MESES CALENDARIO)","TIEMPO TOTAL (MESES DE TIEMPO COMPLETO)","TIEMPO TOTAL (AÑOS DE TIEMPO COMPLETO)","OBSERVACIONES DE LOS JURADOS"]
[1,null,null,null,null,null,null,{"$f":"(F6-E6)/30","v":0},{"$f":"H6*(G6/40)","v":0},{"$f":"I6/12","v":0}]
[2,null,null,null,null,null,null,{"$f":"(F7-E7)/30","v":0},{"$f":"H7*(G7/40)","v":0},{"$f":"I7/12","v":0}]
[3,null,null,null,null,null,null,0,0,0]
[4,null,null,null,null,null,null,0,0,0]
[5,null,null,null,null,null,null,0,0,0]
[6,null,null,null,null,null,null,0,0,0]
[7,null,null,null,null,null,null,0,0,0]
[8,null,null,null,null,null,null,0,0,0]
[9,null,null,null,null,null,null,0,0,0]
[10,null,null,null,null,null,null,0,0,0]
[11,null,null,null,null,null,null,0,0,0]
[12,null,null,null,null,null,null,0,0,0]
[13,null,null,null,null,null,null,0,0,0]
[14,null,null,null,null,null,null,0,0,0]
[15,null,null,null,null,null,null,0,0,0]
[16,null,null,null,null,null,null,{"$f":"(F21-E21)/30","v":0},0,{"$f":"I21/12","v":0}]
[17,null,null,null,null,null,null,0,0,0]
[18,null,null,null,null,null,null,{"$f":"(F23-E23)/30","v":0},0,{"$f":"I23/12","v":0}]
[19,null,null,null,null,null,null,0,0,0]
[20,null,null,null,null,null,null,0,0,0]
["Nota: en caso de ser necesario, favor inserte filas adicionales para registrar otras Experiencias Investigativas, entre las filas 19 y 20, para no alterar las fórmulas ni los formatos de las celdas."]
[]
["Recordatorio: para que las experiencias relacionadas en este Formato sean tenidas en cuenta, las certificaciones correspondientes deben cumplir los requisitos estipulados en la Resolución de convocatoria al Concurso Profesoral  2022 del Instituto de Ciencia y Tecnologia de Alimentos"]

{"sheet":"Hoja 5. Productividad Academica","index":4,"n_rows":106,"n_cols":10,"rows_kept":106,"cut":false,"hidden":false,"merged":[[95,1,95,3],[68,8,68,9],[34,0,34,1],[48,0,48,2],[63,0,63,2],[77,0,77,1],[56,8,56,9],[0,0,0,1],[101,1,101,3],[6,0,6,1],[20,0,20,1],[20,7,20,8],[6,7,6,8],[96,1,96,3],[97,1,97,3],[98,1,98,3],[99,1,99,3],[100,1,100,3],[91,1,91,3],[92,1,92,3],[93,1,93,3],[94,1,94,3],[105,0,105,9],[63,7,63,9],[0,2,0,5],[1,2,1,5],[2,2,2,5],[4,0,4,9],[57,8,57,9],[34,8,34,9],[48,7,48,9],[49,8,49,9],[50,8,50,9],[51,8,51,9],[52,8,52,9],[53,8,53,9],[54,8,54,9],[55,8,55,9],[1,0,1,1],[2,0,2,1],[76,8,76,9],[70,8,70,9],[71,8,71,9],[72,8,72,9],[73,8,73,9],[74,8,74,9],[64,8,64,9],[65,8,65,9],[66,8,66,9],[67,8,67,9],[69,8,69,9],[58,8,58,9],[59,8,59,9],[60,8,60,9]]}
["Nombres y Apellidos del Aspirante:"]
["Tipo de Identificación:"]
["Número de Identificación:"]
[]
["A continuación relacione en orden cronológico su Productividad Académica, diligenciando únicamente los datos solicitados."]
[]
["REVISTAS CATEGORIA A1 (MINCIENCIAS)",null,null,null,null,null,null," Para uso exclusivo de la Institución."]
["N° ARCHIVO SOPORTE","TIPO DE PRODUCTIVIDAD                      (Artículos publicados en revistas clasificadas en las categorías A1 de MinCiencias)","TÍTULO DEL ARTÍCULO","AÑO DE PUBLICACIÓN","NOMBRE DE LA REVISTA","ISSN","OTRA INFORMACIÓN DE INTERÉS","PUNTAJE OTORGADO POR LOS JURADOS","OBSERVACIONES DE LOS JURADOS"]
[1]
[2]
[3]
[4]
[5]
[6]
[7]
[8]
[9]
[10]
["Nota: en caso de ser necesario, favor inserte filas adicionales para registrar otros Artículos publicados en revistas clasificadas en las categorías A1 de Colciencias."]
[]
["REVISTAS CATEGORIA A2 (MINCIENCIAS)",null,null,null,null,null,null," Para uso exclusivo de la Institución."]
["N° ARCHIVO SOPORTE","TIPO DE PRODUCTIVIDAD                      (Artículos publicados en revistas clasificadas en las categorías A2 de MinCiencias)","TÍTULO DEL ARTÍCULO","AÑO DE PUBLICACIÓN","NOMBRE DE LA REVISTA","ISSN","OTRA INFORMACIÓN DE INTERÉS","PUNTAJE OTORGADO POR LOS JURADOS","OBSERVACIONES DE LOS JURADOS"]
[1]
[2]
[3]
[4]
[5]
[6]
[7]
[8]
[9]
[10]
["Nota: en caso de ser necesario, favor inserte filas adicionales para registrar otros Artículos publicados en revistas clasificadas en las categorías A2 de Colciencias."]
[]
["REVISTAS CATEGORIA B o C (MINCIENCIAS)",null,null,null,null,null,null,null," Para uso exclusivo de la Institución."]
["N° ARCHIVO SOPORTE","TIPO DE PRODUCTIVIDAD                      (Artículos publicados en revistas clasificadas en las categorías B o C de Colciencias)","TÍTULO DEL ARTÍCULO","AÑO DE PUBLICACIÓN","NOMBRE DE LA REVISTA","ISSN","CATEGORÍA DE LA REVISTA EN MINCIENCIAS          (En el año de publicación del Artículo)","OTRA INFORMACIÓN DE INTERÉS","PUNTAJE OTORGADO POR LOS JURADOS","OBSERVACIONES DE LOS JURADOS"]
[1]
[2]
[3]
[4]
[5]
[6]
[7]
[8]
[9]
[10]
["Nota: en caso de ser necesario, favor inserte filas adicionales para registrar otros Artículos publicados en revistas clasificadas en las categorías B o C de Colciencias."]
[]
["LIBROS DE INVESTIGACIÓN, DE ENSAYO O CAPITULOS",null,null,null,null,null,null," Para uso exclusivo de la Institución."]
["A","B","C","D","E","F","G","H","I"]
["N° ARCHIVO SOPORTE","TIPO DE PRODUCTIVIDAD                      (Libros de investigación, de ensayo o capitulo","TÍTULO DEL LIBRO O CAPITULO","AÑO DE PUBLICACIÓN","EDITORIAL","ISBN","OTRA INFORMACIÓN DE INTERÉS","PUNTAJE OTORGADO POR LOS JURADOS","OBSERVACIONES DE LOS JURADOS"]
[1]
[2]
[3]
[4]
[5]
[6]
[7]
[8]
[9]
[10]
["Nota: en caso de ser necesario, favor inserte filas adicionales para registrar otros Libros de investigación, de ensayo o capitulos"]
[]
["PREMIOS NACIONALES O INTERNACIONALES",null,null,null,null,null,null," Para uso exclusivo de la Institución."]
["N° ARCHIVO SOPORTE","TIPO DE PRODUCTIVIDAD                  ","TÍTULO DEL PREMIO","AÑO DE PREMIACIÓN","INSTITUCIÓN QUE CONVOCA","EVENTO","OTRA INFORMACIÓN DE INTERÉS","PUNTAJE OTORGADO POR LOS JURADOS","OBSERVACIONES DE LOS JURADOS"]
[1]
[2]
[3]
[4]
[5]
[6]
[7]
[8]
[9]
[10]
["Nota: en caso de ser necesario, favor inserte filas adicionales para registrar otros Premios nacionales o internacionales."]
[null,null,null,null,null,null,null,null," Para uso exclusivo de la Institución."]
["DIRECCION DE PROYECTOS",null,null,null,null,null,null,null,"I","J"]
["N° ARCHIVO SOPORTE","TIPO DE PRODUCTIVIDAD                      (Direccion Proyectos)","TÍTULO DEL PRODUCTO","AÑO DE REGISTRO","AUTORIDAD OFICIAL QUE EXPIDE EL REGISTRO","N° DE REGISTRO","DESCRIPCIÓN DEL PRODUCTO           (Área del conocimiento)","OTRA INFORMACIÓN DE INTERÉS","PUNTAJE OTORGADO POR LOS JURADOS","OBSERVACIONES DE LOS JURADOS"]
[1]
[2]
[3]
[4]
[5]
[6]
[7]
[8]
[9]
[10]
["Nota: en caso de ser necesario, favor inserte filas adicionales para registrar otra Direccion de Proyectos."]
[]
["N° ARCHIVO SOPORTE","INFORMACIÓN ADICIONAL"]
[1]
[2]
[3]
[4]
[5]
[6]
[7]
[8]
[9]
[10]
["Nota: en caso de ser necesario, favor inserte filas adicionales para registrar más información adicional"]
[]
[]
["Recordatorio: para que los productos académicos relacionados en este Formato sean tenidos en cuenta, se deben enviar los soportes correspondientes, tal como se establece la Resolución de convocatoria al Concurso Profesoral 2022 del Instituto de Ciencia y Tecnologia de  Alimentos-ICTA"]